Workbook

Sheet Cover
A4: UNITED NATIONS DEVELOPMENT PROGRAMME
A5: ACCESS TO JUSTICE, SECURITY AND HUMAN RIGHTS
A9: BOOK 1: SCHEDULE OF QUANTITIES
A11: SUPPLY AND REPLACEMENT OF SOLAR ACCESSORIES;
A12: BATTERIES, SOLAR PANELS AND CABLES AT ECC WAU AND JUBA,
A13: SOUTH SUDAN
C15: SITE LOCATIONS:
C17: 1 | D17: WAU ECC , WESTERN BAHR EL GAZAL STATE
C18: 2 | D18: JUBA ECC, CENTRAL EQUATORIA
B21: All prices in US Dollars
C23: Budget Estimated cost: | E23: USD | F23: 50000
B26: Project No.: | C26: ………
B28: Date: | C28: 2022-02-21
B30: Document No: | C30: ECC/01

Sheet Preambles
A3: PRICING PREAMBLES
A5: 1.0 General
A6: =Cover!C28 -> 2022-02-21
A8: 1.1 The Bill of Quantities shall be read in conjunction with the Conditions of Contract, Specifications, Drawings and Employer’s requirements and the Tenderer shall provide against the bill rates or in the prices for the full scope of the work covered by the Contract, no claim or variations shall be considered on account of the Tender’s failure to comply with this provision.
A9: 1.2 The various documents collectively referred to herein as the Bill of Quantities shall jointly constitute the Bill of Quantities referred to in the Conditions of Contract and these preambles are to be read in conjunction with item descriptions in the Bill of Quantities.
A10: 1.3 Lump Sum values shall not be inserted where unit rates are applicable and the Tenderer shall ensure that identical items occurring in separate bills are not priced at different rates, unless this is the deliberate intention.
A11: 1.4 The Tenderer shall check against the summaries that each copy of the Bill of Quantities is complete in the number of pages and in the reproduction of each page. The Tenderer’s unit rates, prices and extensions shall be entered clearly by hand in black ink.
A12: 1.5 Unit rates, prices and extensions shall be given in the United state Dollar with cents taken to two decimal places or any other valid currency value taken to two decimal places.
A13: 1.6 The Bill of Quantities has generally been measured in accordance with the Principals of Measurement (International) for Works of Construction (June 1979), as published by the Royal Institution of Chartered Surveyors with amendments made to suit local practice and conditions. The Quantities inserted against items in the Bill of Quantities are estimated quantities for the Works for the purpose of Tender evaluation, and the Tenderer shall be deemed to have checked and verified such quantities in the compilation of his Tender Price prior to the submission of his Tender. Upon the award of the Contract, the priced Bill of Quantities shall be used solely for evaluating interim payments due to the Contractor, and as a schedule of rates for establishing the value of variations.
A14: 1.7 The Contractor shall not use the Bill of Quantities for the purpose of ordering materials or arranging Subcontractors. References to these activities shall be the Specifications and Drawings and instructions issued by the Engineer.
A15: 1.8 All items in the Bill of Quantities shall be deemed to have a monetary value, whether priced or unpriced. In the absence of a unit rate or price against any item, the cost shall be deemed to have been included elsewhere within the Contract Price and the work described to that item shall be executed by the Contractor without any additional payment.
A16: 1.9 The descriptions in the Bill of Quantities may be incomplete and the Tenderer is referred to the Drawings, Photographs and Specifications for complete information in respect of all the relevant descriptions, quality, dimensions, capacities, design parameters and the like.
A18: 2.0 Format of Descriptions
A20: 2.1 In addition to common abbreviations the following have been adopted; POM (I), Principal of Measurement (International) for Works of construction dated June 1979 as published by the royal Institution of Charted Surveyors, London
A22: mm- Millimeter Pr-Pair
A23: M-Linear Meter No-Number
A24: m2- Square Meter Kg-Kilograms
A25: m3- Cubic Meter
A27: 3.0 Rates
A29: 3.1 Rates and Prices shall be all inclusive, comprehensive and include the following:
A30: a) All obligations imposed by the Contract.
A31: b) Complying in every respect with the requirements and the considerations of the Specifications and Drawings.
A32: c) All considerations arising from the definitions incorporated in each Preamble section.
A33: d) Labour for fixing and all associated costs.
A34: e) Materials and goods and all associated costs
A35: f) Fitting and /or fixing materials and goods in any position, hoisting to any height.
A36: g) Use of Scaffolding, plant, equipment and tools.
A37: h) Any additional labours usually associated with measured items.
A38: i) All necessary protection of the Works, removing all casings and temporary covering and making good and clearing away upon completion.
A39: j) All applicable taxes, duties, charges, government levies, landing charges and transport.
A40: k) Overheads & profit.
A42: 4.0 Measurements
A44: 4.1 All measurements are net and the rates shall include for all laps, waste, working space and trade or traditional allowances.
A45: 4.2 The pricing of materials shall take account of the following:
A46: a) Pricing Preambles, Drawings and specifications shall apply reciprocally between the various sections of the Works, unless otherwise described.
A47: b) Materials shall be of the specified quality unless otherwise described.
A48: c) All materials shall be transported, handled, stored and fixed in accordance with the printed instruction or recommendations of their manufacturer or suppliers.
A49: d) Protection of completed work, all casings and temporary coverings and making good and clearing away upon completion.
A50: 4.3 Contingency: In the event that the contractor meets unmeasured works, the contractor shall inform the engineer in writing. The engineer shall ascertain the unmeasured works to verify the contractors claim. The contractor shall submit its claim and wait for approval from the engineer/client. The contractor shall use the same rates as in the contract for similar items. No new rates shall be applied unless the unmeasured work in its nature does not exist in the already mentioned items in the priced bill of quantities.
A51: 5.0 Discrepancies
A53: 5.1 Any discrepancy arising in terms of these Preambles and the items contained within the Bill of Quantities must be brought to the attention of the Engineer for his clarification prior to the submission of tender.
A55: EARTH WORKS
A57: § All quantities for excavation have been measured net with no allowance for increase in bulk or working space.
A58: § The Tenderer shall allow in this excavation rates for excavating in any material, including running sand and rock, commencing excavation at any depth, excavating below the normal water table, excavating around existing services and mains, supporting the vertical sides of excavations, working space and filling soft spots.
A59: § Rates and Prices to include,
A60: a) Excavating by whatever means are necessary including hand excavation in any kind of ground, except rock and boulder rock.
A61: b) Trimming or grading ground to produce level surfaces or surfaces to falls or slopes.
A62: c) Ramming and compacting sides and bottoms of excavations and supports to sides.
A63: d) Keeping free from water including any dewatering as necessary.
A64: e) Any hand excavation required around existing services or the like.
A66: CONCRETE WORK
A68: § The rates for all concrete work shall include for the following:
A69: a) Concrete test cubes and testing costs wherever required.
A70: b) Mixing, hoisting and placing and compacting on the surfaces of any material or on formwork.
A71: b) The forming any construction joints, including any required preparation for adjacent pours, together with expansion joints or the like.
A72: d) Curing and protecting concrete surfaces from harmful weather conditions
A73: e) All necessary keys to concrete surfaces to receive in-situ finishes.
A75: REINFORCEMENT
A77: § The rates for bar reinforcement shall include for the following;
A78: a) Positioning and protecting starter bars, Straightening (If required) cutting to length and bending reinforcement to required shapes.
A79: b) Cleaning and wire brushing.
A80: c) Provision of supports (excluding links and stirrups) steel binding wire and
A81: approved/proprietary distance pieces.
A83: SHUTTERING
A85: § The rates for Shuttering or moulds as appropriate shall include for the followings;
A87: a) All cutting and waste including raking curved or circular cutting and notching around pipes, ducting and fittings.
A88: b) Setting up, strutting and supporting at any height above the structure subject to any limitations imposed by the engineer including all pops, stays struts, wedges and bolts etc.
A89: c) Carefully coating with shutter oil ensuring that no shutter oil is applied to surfaces of reinforcement.
A90: d) Rubbing down, filling and making good the surface of concrete after removal of shuttering.
A92: MASONRY
A94: § The rates for brick walls shall include the following:
A95: a) Straight raking curved and circular rough or fair cutting, plumbing at angles, cutting and bonding at angles, openings and intersections, building in to and/or against adjacent work, wedging and pinning up to soffits.
A96: b) All necessary keys for in-situ finishing.
A97: c) All necessary wall ties, dowels, straps, sleeves. Channels and other like fixings built-in
A98: at junctions between brick work and insitu concrete including casting in, drilling,
A99: bolting and the like.
A100: d) All necessary brick work reinforcement at junctions between brick work and walls
A101: construction joints or the like and openings.
A103: WOODWORK
A105: § The rates for wood work shall include for the following;
A106: a) All joints in the running length including structural joints.
A107: b) Cutting and fitting to steelwork, trimming around opening, notching, boring and
A108: sinking.
A109: b) Wood work shall be fixed with non-corroding nails and screws and unless otherwise described all plugging and pellating shall be deemed to be included.
A111: FINISHES
A112: § The rates for all work-in this section shall include for the followings:
A113: a) Straight, racking, curved and circular cuttings or the like and all consequent wastages.
A114: b) All setting out temporary rules, screeds, templates and supports.
A115: c) Curing and cleaning off/down upon completion.
A116: d) All labours and making good around pipes, ducting and fittings and the like

Sheet SOW
A2: UNDP
A3: PROJECT:
A4: =Cover!A12 -> BATTERIES, SOLAR PANELS AND CABLES AT ECC WAU AND JUBA,
A6: SCOPE OF WORK
A7: =Cover!C28 -> 2022-02-21
A8: This document serves as a Scope of Work (SOW) to the Independent Contractor Agreement for the renovation of ECC at Wau and Juba
A10: These being renovation/repairs for communication systems, the intending bidders are strong advised to visit the site before developing their bids for submission.
A12: 1. Description of Services.
A14: Location: Wau ECC and Juba ECC
A15: Method of Performing Services: Contractor will determine the method, details, and means of completing the Project. Contractor agrees to devote the required personnel for a minimum 90 calendar days to the Project.
A16: Tools and Instrumentalities: Contractor, at its own expense, will supply all tools, instrumentalities and all building and installation materials for the Project, including without limitation paint, steel metal frames, ceiling mounted fan units, plumbing materials, iron poles, rain gutters and iron sheets etc.
A17: Finishing Materials: Company shall be responsible for procuring the finishing materials as provided herein in the BoQ.
A19: Work Items:
A21: ECC Office blocks.
A22: Exterior Work
A23: Painting works;
A24: Fill exterior surfaces as necessary, prime all the plaster work
A25: Paint siding, trim, doors, soffits, fascia, shutters, gutters, downspouts using 3-color paint scheme (weather guard – cream paint)
A27: Interior Work
A28: Painting works;
A29: Fill interior surfaces as necessary, prime all the plaster work
A30: Paint siding, trim, doors, soffits, fascia, shutters, gutters, downspouts using 3-color paint scheme (vinyl silk – white paint)
A31: Electrical wiring with all the required accessories
A32: Fixing the roof mounted ceiling fans
A34: ECC Office blocks.
A35: Internal Work
A36: Applying plaster to internal identified places
A37: Painting works;
A38: Fill exterior surfaces as necessary, prime all the plaster work
A39: Electrical wiring with all the required accessories
A41: 2. Contractor’s payments.
A42: In consideration for the Services to be performed by Contractor, UNDP agrees to pay Contractor the amount awarded based on the following payment schedule/milestones:
A43: 1. Milestone 1: 95% of contract amount upon approval of satisfactory completed activities as per stated in the bills of quantities;
A45: 2. Milestone 2: 05% after defect liability period of 12-month;
A47: 3. Deadline.
A48: Contractor shall complete the Project within 120 calendar days. For each additional duration, the conditions stated in the conditions of contract shall be applied.

Sheet Preliminaries
A3: UNITED NATIONS DEVELOPMENT PROGRAMME
A4: ACCESS TO JUSTICE AND RULE OF LAW
A6: =[1]Cover!A9 -> BOOK 1: SCHEDULE OF QUANTITIES
A7: Project No.: | B7: =Cover!C26 -> ………
A9: Project: | B9: =Cover!#REF! -> 
B10: =Cover!A12 -> BATTERIES, SOLAR PANELS AND CABLES AT ECC WAU AND JUBA,
A12: Item: | B12: BILLS OF QUANTITIES FOR PRELIMINARY WORKS
A14: Date: | B14: =Cover!C28 -> 2022-02-21
A16: Item | B16: Description | C16: Unit | D16: Qty | E16: Rate | F16: Amount
A17: 1 | B17: General
A18: 1.1 | B18: Pre-construction work, mobilization activities. The bidders are strongly advised to visit the site before submitting their quotations to familiarize with the existing status of the undelaying strata | C18: LS | D18: 1 | F18: =D18*E18 -> 0
B19: The contractor shall provide and maintain temporary sheds for the storage of materials, tools, and tackle and the use of all persons employed on the Site. Those used for the storage of cement and other perishable materials and the like are to be weatherproofed at all times
B20: Provide, maintain and keep in a clean condition adequate temporary sanitary accommodation and facilities in accordance with local regulations for all persons employed on the Works.
B21: Allow for supplying temporary electricity for the Works and facilities of the contractor including 'connection, distribution system for the work, internal arrangements and all payment to the authorities for connections. It is the responsibility of the Contractor to ensure steady and uninterrupted power supply to Works. The Contractor shall not be entitled to claim and the Employer shall not pay cost incurred by the Contractor for using electric power generators or for using other alternative power supply method in case there happened to be disruptions to normal power supply due to any reason.
A22: 1.2 | B22: Allow for providing and maintenance of name board and advertising board to the specifications and as directed by the Engineer. | C22: Item | D22: 1 | F22: =E22*D22 -> 0
A23: 1.3 | B23: Post construction works and clean up, all debris as a result of construction activities, shall be dumped to locations/sites approved by governing authorities within the jurisdiction of construction site. | C23: LS | D23: 1 | F23: =E23*D23 -> 0
A24: 1.4 | B24: Allow for providing branding with marble stone or a plaque to the specifications and as directed by the UNDP management in conjunction with other partners
B25: TOTAL FOR PRELIMINARIES | F25: =SUM(F18:F24) -> 0

Sheet ECC Building Wau
A2: UNITED NATIONS DEVELOPMENT PROGRAMME
A3: ACCESS TO JUSTICE, SECURITY AND HUMAN RIGHTS PROGRAM
A5: =Cover!A9 -> BOOK 1: SCHEDULE OF QUANTITIES
A7: Project No: | B7: =Cover!C26 -> ………
A9: Project: | B9: =Cover!#REF! -> 
A11: Item: | B11: BILL OF QUANTITIES FOR ECC WAU
A13: Date: | B13: =Cover!C28 -> 2022-02-21
A15: ITEM | B15: BRIEF DESCRIPTION | C15: UNIT | D15: QTY | E15: RATE | F15: AMOUNT
A17: A | B17: SOLAR INSTALLATIONS
A19: a | B19: Unless otherwise stated, Rates in Bill of Quantities shall include all necessary materials Cables, conduits, PVC sunk box, bulbs, switches etc.) and labour required to complete the electrical installation to good working order.
A21: b | B21: Except where specifically stated, all costs associated with provision of all holes, openings, chases, ducts and other builders' work required for installation and make them good, shall be included in the rates.
A23: c | B23: Testing and commissioning of the electrical installation is to be carried out by the contractor and Cost of such testing and reports to be included in the rates unless otherwise mention separately.
A25: d | B25: All types of fittings, materials, painting and finishes shall be approved by the Engineer prior to installation.
B27: Final Circuit Wiring
B29: Rates for final circuit wiring shall include all necessary switches, sockets, materials Cables, conduits, PVC sunk box, & junction boxes, draw wires, etc. and labour required to complete the electrical installation to good working order.
B31: Light Point Wiring
A33: A1 | B33: Wiring and installation (including supply of all materials) of the light points using approved type PVC insulated PVC sheathed 1 mm² copper cable and 2.5mm² Earth cable drawn through securely fixed concealed existing PVC conduit. (Switches shall be ABB / Clipsal / | C33: Nos. | D33: 10 | F33: =D33*E33 -> 0
B35: Ditto: eternal | C35: Nos. | D35: 4 | F35: =D35*E35 -> 0
B37: 13A Socket Outlet
A39: A2 | B39: Supply & installation of 13A fused shuttered switched socket outlet to comply with relevant BS standard (Clipsal, Orange, Crabtree/ Tenby/ABB or equivalent). Wiring (including supply of earth wire & all other material required ) of above socket outlet to already fixed conduits. Double sockets | C39: Nos. | D39: 5 | F39: =D39*E39 -> 0
B41: Ditto: Single sockets | C41: Nos. | D41: 5 | F41: =D41*E41 -> 0
B43: Light Switch
A45: A3 | B45: Supply & installation of switches to comply with relevant BS standard (Clipsal, Orange, Crabtree/ Tenby/ABB or equivalent). Wiring (including supply of all other material required ) of above switch proper functioning. (Internal) | C45: Nos. | D45: 10 | F45: =D45*E45 -> 0
B47: Ditto: External lighting switch | C47: Nos. | D47: 1 | F47: =D47*E47 -> 0
B49: Fittings & Equipment's
B51: Light Fittings
A53: A4 | B53: Supply and installation of 15 Watt LED (Philips or equivalent) Lamp, with color rendering index (CRI) greater than 80, minimum light output of 200 lumens and life span of more than 20,000 hours suitable for indoor use including all other necessary accessories like terminal block etc. (accessories - thorn / Philips or equivalent & fitting) | C53: Nos. | D53: 10 | F53: =D53*E53 -> 0
A55: A5 | B55: Supply and installation of All-weather exterior light, 40 watt LED (Philips or equivalent) Lamp with color rendering index (CRI) greater than 75, minimum light out put of 450 lumens and life span of more than 20,000 hours suitable for outdoor use including all other necessary accessories like terminal block etc. (accessories - thorn / Philips or equivalent & fitting) | C55: Nos. | D55: 4 | F55: =D55*E55 -> 0
A57: A6 | B57: Supply and installation of approved type Air condition system split level 18,000 BTU (LG or equivalent) complete with all necessary accessories to make it functional as approved by the engineer. With all the necessary accessories, including wiring to make it functional | C57: No.s | D57: 1 | F57: =D57*E57 -> 0
B59: Earthing Arrangement
A61: A7 | B61: Supply and installation of approved type earthing system as approved by the engineer in order to keep the earth resistance below 10 ohms. The earth bar at the main distribution board should connect to the earth electrode with a 16mm2 PVC/CU cables | C61: item | D61: 1 | F61: =D61*E61 -> 0
B63: Lightning Protection
A65: A8 | B65: Supply and installation of approved type Lightning conductor system including lightning arrester, 1"copper tape clipped at every 300mm to wall and copper earth rode embedded in earth as approved by the engineer. | C65: item | D65: 1 | F65: =D65*E65 -> 0
B67: Socket Outlet for internet connections
A69: A9 | B69: Chisel the wall to provide trunking for 25mm trunking pipe (ms) for the 10 computers | C69: M | D69: 22 | F69: =D69*E69 -> 0
A71: A10 | B71: Supply and fix 25mm PVC pipe to trunking in the wall and make good with plaster and paint to match the existing surface | C71: M | D71: 22 | F71: =D71*E71 -> 0
A73: A11 | B73: Supply and fix plastic condute/MK-boxes; RJ45 Sockets -double and RJ45 face plate double to 10 outlet computer connection points | C73: No | D73: 10 | F73: =D73*E73 -> 0
A75: A12 | B75: Wiring and installation (including supply of all materials) for internet connection to ten (10) computers using approved cat-6-cable and RJ45 connectors drawn through a securely fixed concealed existing 25mm PVC conduit. | C75: Nos. | D75: 10 | F75: =D75*E75 -> 0
B77: Solar System
A79: A13 | B79: Provide and replace damaged PV module performance model TPS105 rating at 1000W/m2 (100 mw/cm2) with the following performance specifications: at 250C; Pmax 250w, Ipmax 8.14A DC Vpmax 30.7v DC Isc 8.52A DC and at 270C Pmax 185W, Ipmax 6.69A DC, Vpma 27.33 V DC, Isc 7.18 A DC. Series fuse 16A and Roof fire class C. | C79: No | D79: 3 | F79: =D79*E79 -> 0
A81: A14 | B81: Solar charge controller | C81: No | D81: 2 | F81: =D81*E81 -> 0
A83: A15 | B83: Supply and install UPS of 1000w | C83: No | D83: 1 | F83: =D83*E83 -> 0
A85: A16 | B85: Repair the existing doors | C85: No.s | D85: 3 | F85: =D85*E85 -> 0
A87: A17 | B87: Repair the existing doors and provide new mortice locks | C87: No.s | D87: 3 | F87: =D87*E87 -> 0
A89: A18 | B89: Supply and install lead battery: Gel Deep Cycle Battery, Rechargeable battery, Nonspillable with the following specification: 2V1500AH@10h Rate; Constant voltage charge, standby use: 2.25-2.30v: Cyclic use:2.35-2.40V Maximum initial current: less than 600A to match the existing solar batteries | C89: Nos. | D89: 24 | F89: =D89*E89 -> 0
A91: A19 | B91: Control panel for 100A, 3 Phase supply: 01 Nos 63A; 01 Nos 30 A , include the wiring and other installation costs. | C91: Nos. | D91: 1 | F91: =D91*E91 -> 0
B93: Painting
A95: a | B95: Rate shall include for preparation of surface cleaning down, smoothing, knotting, puttying, stepping etc. protection of floors and fitting, removing & replacing door and window, furniture, and cleaning windows etc. upon completion. | D95: Note
A97: b | B97: Paint shall be from approved colour with approved manufacturer. | D97: Note
B99: Walls
A101: A20 | B101: Prepare and apply one coat of primer and two coats of vinyl silk paint white in colour of good quality to internal plastered faces of walls | C101: m² | D101: 140 | F101: =D101*E101 -> 0
A103: A21 | B103: Prepare and apply one coat of primer and two coats of Ceiling paint white in colour of good quality to Ceiling plastered faces of walls | C103: m² | D103: 45 | F103: =D103*E103 -> 0
A105: A22 | B105: Prepare and apply one coat of primer and two coats of weather guard paint cream in colour and of good quality to external plastered faces of walls | C105: m² | D105: 95 | F105: =D105*E105 -> 0
B107: TOTAL FOR ECC WAU | F107: =SUM(F17:F106) -> 0

Sheet ECC Juba
A2: UNITED NATIONS DEVELOPMENT PROGRAMME
A3: ACCESS TO JUSTICE, SECURITY AND HUMAN RIGHTS PROGRAM
A5: =Cover!A9 -> BOOK 1: SCHEDULE OF QUANTITIES
A7: Project No: | B7: =Cover!C26 -> ………
A9: Project: | B9: =Cover!A12 -> BATTERIES, SOLAR PANELS AND CABLES AT ECC WAU AND JUBA,
A11: Item: | B11: BILL OF QUANTITIES FOR ECC JUBA
A13: Date: | B13: =Cover!C28 -> 2022-02-21
A15: ITEM | B15: BRIEF DESCRIPTION | C15: UNIT | D15: QTY | E15: RATE | F15: AMOUNT
A17: B | B17: SOLAR INSTALLATIONS
A19: a | B19: Unless otherwise stated, Rates in Bill of Quantities shall include all necessary materials Cables, conduits, PVC sunk box, bulbs, switches etc.) and labour required to complete the electrical installation to good working order.
A21: b | B21: Except where specifically stated, all costs associated with provision of all holes, openings, chases, ducts and other builders' work required for installation and make them good, shall be included in the rates.
A23: c | B23: Testing and commissioning of the electrical installation is to be carried out by the contractor and Cost of such testing and reports to be included in the rates unless otherwise mention separately.
A25: d | B25: All types of fittings, materials, painting and finishes shall be approved by the Engineer prior to installation.
B27: Solar System
A29: B1 | B29: Solar charge controller | C29: No | D29: 3 | F29: =D29*E29 -> 0
A31: B2 | B31: Supply and install lead battery: Gel Deep Cycle Battery, Rechargeable battery, Nonspillable with the following specification: 2V1500AH@10h Rate; Constant voltage charge, standby use: 2.25-2.30v: Cyclic use:2.35-2.40V Maximum initial current: less than 600A to match the existing solar batteries | C31: Nos. | D31: 24 | F31: =D31*E31 -> 0
B33: Electrical
A35: B3 | B35: Provide and fix a new distribution board 250A -16way to replace the existing one. Make good the walls to match the existing one | C35: Nos. | D35: 1 | F35: =D35*E35 -> 0
A37: B4 | B37: Isolator switches 200A -2pcs, | C37: Nos. | D37: 2 | F37: =D37*E37 -> 0
A39: B5 | B39: 60 A -10pcs, Circuit breaker 40 A -6pcs | C39: Nos. | D39: 16 | F39: =D39*E39 -> 0
A41: B6 | B41: Change over switch 250A | C41: Nos. | D41: 1 | F41: =D41*E41 -> 0
A43: B7 | B43: Wiring and installation 4.0 mm2 2-core to socket out lets using the existing drawn through securely fixed concealed PVC conduit. | C43: Roles | D43: 5 | F43: =D43*E43 -> 0
A45: B8 | B45: Wiring and installation 2.5 mm2 2-core to light points using the existing drawn through securely fixed concealed PVC conduit. | C45: Role | D45: 5 | F45: =D45*E45 -> 0
B47: Walls
A49: B9 | B49: Provide 90mm thick cement-sand (1:3 mix) plaster, applying in layers at an average layer of 20mm thickness finished smooth with wooden float and steel float to all internal wall faces, on brick walls surfaces finishing neatly ready for painting (internal closed door opening) | C49: m² | D49: 1.89 | F49: =D49*E49 -> 0
B51: Painting
A53: a | B53: Rate shall include for preparation of surface cleaning down, smoothing, knotting, puttying, stepping etc. protection of floors and fitting, removing & replacing door and window, furniture, and cleaning windows etc. upon completion. | D53: Note
A55: b | B55: Paint shall be from approved colour with approved manufacturer. | D55: Note
A57: B10 | B57: Prepare and apply one coat of primer and two coats of vinyl silk paint white in colour of good quality to internal plastered faces of walls | C57: m² | D57: 1.89 | F57: =D57*E57 -> 0
B58: Doors
A59: B11 | B59: Supply and fix mortice lock to aluminium door shutter, and repair the existing doors | C59: No.s | D59: 1 | F59: =D59*E59 -> 0
A61: B12 | B61: Supply and fix mortice lock to wooden door and repair the existing doors. | C61: No.s | D61: 1 | F61: =D61*E61 -> 0
B63: TOTAL FOR ECC WAU | F63: =SUM(F27:F62) -> 0

Sheet Summary
A3: SHEET SUMMARY
A4: =[2]Preliminaries!A4 -> Book 1: SCHEDULE OF QUANTITIES
A6: BILL NO | B6: DESCRIPTION | E6: TOTAL AMOUNT
A8: 1 | B8: =Preliminaries!B25 -> TOTAL FOR PRELIMINARIES | E8: =Preliminaries!F25 -> 0
A10: 2 | B10: ='ECC Building Wau'!B107 -> TOTAL FOR ECC WAU | E10: ='ECC Building Wau'!F107 -> 0
A12: 3 | B12: ='ECC Juba'!B63 -> TOTAL FOR ECC WAU | E12: ='ECC Juba'!F63 -> 0
B14: TOTAL | E14: =SUM(E8:E13) -> 0
B16: ADD 10% CONTINGENCY | D16: 0.1 | E16: =D16*E14 -> 0
B18: TOTAL FOR ALL WORKS | E18: =SUM(E14:E17) -> 0

Sheet Milestones
E2: =Summary!E14 -> 0
A3: Milestone | B3: Description of work | C3: Percentage | D3: Delivery date. | E3: Executed work in USD
A5: Milestone 1 | B5: Upon satisfactory completion of 45% of Civil works as stated in the BoQ. | C5: 0.45 | E5: =C5*E2 -> 0
A7: Milestone 2 | B7: Upon satisfactory completion of 50% of Civil works as stated in the BoQ | C7: 0.5 | E7: =C7*E2 -> 0
A9: Milestone 3 | B9: Upon completion of defect liability period of 12 month 05% | C9: 0.05 | E9: =C9*E2 -> 0
A11: Milestone 4 | B11: Contingency 10% | C11: 0.1 | E11: =Summary!E16 -> 0
A13: Total | B13: Total Contract Sum | C13: =SUM(C5:C11) -> 1.1 | E13: =SUM(E5:E11) -> 0

Sheet Financial Evaluation (2) (hidden)
A1: items | B1: Description/Bidders | C1: JGH - 50 kWp
C2: Qty | D2: Unit Price | E2: Total | F2: $/W(h) | G2: Qty | H2: Unit Cost | I2: Cost | J2: Reduction | K2: Comments
A3: 1 | B3: Solar panels | C3: 159 | D3: 133.04 | E3: =D3*C3 -> 21153.36 | G3: =40000/315 -> 126.984127 | H3: =(E3/C3)/315 -> 0.4223492063 | I3: =H3*30000 -> 12670.47619 | J3: =E3-I3 -> 8482.88381 | K3: 40 kWp
A4: 2 | B4: Solar Charge controller | C4: 5 | D4: 532.13 | E4: 2660.65 | G4: 4 | H4: =D4 -> 532.13 | I4: =H4*G4 -> 2128.52 | J4: 532.13 | K4: BlueSolar MPPT 150/85. Reduced by 1 unit
A5: 3 | B5: Lithium Batteries - 125 kWh | C5: 1 | D5: 54658.39 | E5: 54658.39 | G5: 2 | H5: =E5/10 -> 5465.839 | I5: =G5*H5 -> 10931.678 | J5: 43726.712 | K5: 50 kWh - B-Box 12.8. From 10 units to 3
A6: 4 | B6: Inverters and Smart Power management unit/assembly | C6: 1 | D6: 10491.27 | E6: 10491.27 | G6: 1 | H6: =D6-2529.91 -> 7961.36 | I6: =H6*G6 -> 7961.36 | J6: 2529.91 | K6: Removed 1 unit of Quattro 48/8000/110/100
A7: 5 | B7: Ancillaries, Cables, Mounting System | C7: 1 | D7: 12931.14 | E7: 12931.14 | I7: =E7 -> 12931.14
A8: 6 | B8: Lightning and Surge Protection | C8: 1 | D8: 0 | E8: 0
A9: 7 | B9: Technical Room Elements | C9: 1 | D9: 1111.8 | E9: 1111.8 | I9: =E9 -> 1111.8
A10: 8 | B10: Design, sizing and documentation | C10: 1 | D10: 0 | E10: 0
A11: 9 | B11: Site Preparation and Civil Works | C11: 1 | D11: 0 | E11: 0
A12: 10 | B12: Installation, Initial PV System Training, UAT and Commissioning | C12: 1 | D12: 27373.25 | E12: 27373.25 | I12: =E12 -> 27373.25
A13: 11 | B13: Integration with Existing Local Office Electric Distribution and Wiring | C13: 1 | D13: 0 | E13: 0
A14: 12 | B14: Bi Annual maintenance by the local partner (for 3 years): after-sales services including maintenance (preventative and corrective) and technical support (on-site and/or remote) including continues online system and performance monitoringm included commissioning | C14: 6 | D14: 2175.46 | E14: 13052.76 | I14: =E14 -> 13052.76
A15: 15 | B15: Freight Cost to Maiduguri, Nigeria | E15: 16055.89 | I15: 16055.89
A16: 16 | B16: Site Survey including Survey Reporting | E16: 0
A17: 17 | B17: Total DAP price Juba, South Sudan – (Acquisition Cost) | E17: =SUM(E3:E16) -> 159488.51 | G17: Total | I17: =SUM(I3:I15) -> 104216.8742 | J17: 55271.63581
B18: Estimated Equipment Delivery Time (in weeks) | E18: 27 Weeks | J18: =I17+J17 -> 159488.51
